Workbook

Sheet Calculation
A1: Target diameter: | C1: 19.6850394 | D1: in | E1: Rings: | F1: 10 | G1: hidden constants | J1: (image on the next sheet has 50cm diameter + 5cm edge)
A2: Inner (black) target diameter: | C2: 7.874 | D2: =D1 -> in | F2: ^ | G2: =IF(D1="m",100,IF(D1="mm",0.1,IF(D1="in",2.54,IF(D1="ft",2.54*12,1)))) -> 2.54
A3: Diameter of the 10 ring: | C3: =C1/F1 -> 1.96850394 | D3: =D2 -> in | E3: <---------- | F3: -----^
A4: Actual (real) distance: | C4: 50 | D4: m | G4: =IF(D4="m",100,IF(D4="mm",0.1,IF(D4="in",2.54,IF(D4="ft",2.54*12,1)))) -> 100
A5: Radius viewing angle: | C5: =ATAN(((C1*$G$2)/2)/(C4*$G$4)) -> 0.004999958342 | D5: rad | E5: =C5*180/PI() -> 0.2864765107 | F5: deg
A6: Inner radius viewing angle: | C6: =ATAN(((C2*$G$2)/2)/(C4*$G$4)) -> 0.001999993333 | D6: rad | E6: =C6*180/PI() -> 0.1145911771 | F6: deg
A7: Radius of 10 view. angle.: | C7: =ATAN(((C3*$G$2)/2)/(C4*$G$4)) -> 0.0004999999591 | D7: rad | E7: =C7*180/PI() -> 0.02864788741 | F7: deg
B9: =CONCATENATE("DryFire distance (",D4,")") -> DryFire distance (m) | C9: =CONCATENATE("Diameter (",D1,") of") -> Diameter (in) of
C10: target | D10: inner r. | E10: 10th
B11: 1 | C11: =(TAN($C$5)*(B11*($G$4/$G$2)))*2 -> 0.393700788 | D11: =(TAN($C$6)*(B11*($G$4/$G$2)))*2 -> 0.15748 | E11: =(TAN($C$7)*(B11*($G$4/$G$2)))*2 -> 0.0393700788
B12: 2 | C12: =(TAN($C$5)*(B12*($G$4/$G$2)))*2 -> 0.787401576 | D12: =(TAN($C$6)*(B12*($G$4/$G$2)))*2 -> 0.31496 | E12: =(TAN($C$7)*(B12*($G$4/$G$2)))*2 -> 0.0787401576
B13: 3 | C13: 1.181102364 | D13: 0.47244 | E13: 0.1181102364
B14: 4 | C14: 1.574803152 | D14: 0.62992 | E14: 0.1574803152
B15: 4.5 | C15: 1.771653546 | D15: 0.70866 | E15: 0.1771653546
B16: 5 | C16: 1.96850394 | D16: 0.7874 | E16: 0.196850394
B17: 5.5 | C17: 2.165354334 | D17: 0.86614 | E17: 0.2165354334
B18: 6 | C18: 2.362204728 | D18: 0.94488 | E18: 0.2362204728
B19: 7 | C19: 2.755905516 | D19: 1.10236 | E19: 0.2755905516
B20: 8 | C20: 3.149606304 | D20: 1.25984 | E20: 0.3149606304
B21: 9 | C21: 3.543307092 | D21: 1.41732 | E21: 0.3543307092
B22: 10 | C22: 3.93700788 | D22: 1.5748 | E22: 0.393700788
B24: PRINTED TARGET
B25: =CONCATENATE("dryfire dist. (",D4,")") -> dryfire dist. (m) | C25: size (cm)
B26: 50 | C26: =(TAN($C$5)*(B26*($G$4/$G$2)))*2*$G$2 -> 50.00000008
D27: WARNING!!! Once you have resized the target, do not save the file!
A28: © Lukas Plachy 28. 7. 2014 | C28: http://lukas.plachy.eu

Sheet Target to be printed
